bitfinex-derivatives/quotes_SOLF0:USTF0_20250413
["timestamp","ask_amount","ask_price","bid_price","bid_amount"]
[1744583764804,0.0537447,127.12,127.1,6.2959]
[1744583766099,0.0537447,127.12,127.09,6.35208998]
[1744583766605,0.0537447,127.12,127.1,6.2958]
[1744583770610,0.0537447,127.12,127.09,0.05578998]
[1744583771109,6.2958,127.11,127.09,0.05578998]
[1744583771708,0.0537447,127.12,127.09,0.05578998]
[1744583772008,34.3,127.11,127.01,34.3]
[1744583772208,6.297,127.08,127.05,6.2982]
[1744583772710,2.0367,127.1,127.03,6.299]
[1744583772907,17.06964865,127.1,126.99,623.74]
[1744583773105,0.05404791,127.08,127.05,0.05420524]
[1744583773312,34.3,127.07,127.05,0.05420524]
[1744583773811,6.2983,127.06,127.02,6.2995]
[1744583774809,6.2985,127.05,127.01,6.3003]
[1744583775010,6.35134463,127.05,127.03,0.05894825]
[1744583777112,0.05284463,127.05,127.03,0.05894825]
[1744583779416,6.35164463,127.05,127.03,0.05894825]
[1744583781120,0.05284463,127.05,127.03,0.05894825]
[1744583783014,0.05284463,127.05,127.04,6.2989]
[1744583783419,0.05284463,127.05,127.04,15.69938282]
[1744583783618,36.3567,127.1,127.04,9.40048282]
[1744583784221,42.6528,127.1,127.01,34.32]
[1744583784520,36.3567,127.1,127.03,9.40048282]
[1744583784721,0.0571483,127.07,127.04,0.05859723]
[1744583787516,0.0571483,127.07,127.05,9.40048282]
[1744583787712,34.32,127.13,127.05,43.72048282]
[1744583787912,34.32,127.13,127.1,6.296]
[1744583788117,34.32,127.13,127.08,9.40048282]
[1744583788418,4.0338,127.15,127.05,34.32]
[1744583788620,4.0338,127.15,127.1,9.40048282]
[1744583788819,0.05985194,127.11,127.1,9.40048282]
[1744583789015,4.0338,127.15,127.11,6.2952]
[1744583789222,0.05245468,127.12,127.11,6.2952]
[1744583790119,0.05245468,127.12,127.1,6.35338992]
[1744583790319,0.05245468,127.12,127.1,0.05758992]
[1744583791224,0.05245468,127.12,127.1,6.35338992]
[1744583791527,0.05245468,127.12,127.1,0.05758992]
[1744583792029,0.05245468,127.12,127.11,6.2955]
[1744583801538,34.26,127.19,127.1,9.45807274]
[1744583801838,38.2742,127.19,127.12,9.40048282]
[1744583802437,38.2742,127.19,127.1,9.40048282]
[1744583802637,0.05510365,127.17,127.14,0.05252966]
[1744583803043,6.293,127.16,127.14,0.05252966]
[1744583803343,34.26,127.15,127.09,34.26]
[1744583803641,40.5538,127.15,127.11,6.2952]
[1744583803843,1.9959,127.14,127.11,6.2952]
[1744583804039,1.9959,127.14,127.08,9.40048282]
[1744583804239,1.9959,127.14,127.03,35.73818157]
[1744583804445,0.06043402,127.12,127.1,0.05417836]
[1744583804745,34.26,127.11,127.03,34.26]
[1744583805640,40.5559,127.11,127.07,6.2972]
[1744583805842,0.05993827,127.08,127.07,6.2972]
[1744583807041,0.05993827,127.08,127.06,6.35812619]
[1744583808646,0.05993827,127.08,127.0,1.36972822]
[1744583808647,6.2975,127.07,127.0,43.66048282]
[1744583808947,2.0921,127.1,127.0,43.66048282]
[1744583809550,6.2975,127.07,127.03,6.299]
[1744583809848,0.05154255,127.06,127.04,0.05436165]
[1744583812643,0.05154255,127.06,127.04,6.35316165]
[1744583814348,0.05154255,127.06,127.04,0.05436165]
[1744583815544,34.31154255,127.06,127.04,0.05436165]
[1744583815749,34.31154255,127.06,126.98,9.40048282]
[1744583815950,34.26,127.06,126.98,9.40048282]
[1744583816253,6.2989,127.05,127.01,6.3003]
[1744583816754,0.05301615,127.04,127.01,6.3003]
[1744583817051,0.05301615,127.04,127.0,9.40048282]
[1744583817552,0.05301615,127.04,127.01,6.3]
[1744583818152,0.05301615,127.04,127.02,6.2999]
[1744583820453,0.05301615,127.04,127.03,6.2994]
[1744583820852,4.1895,127.09,127.02,9.45349897]
[1744583821151,369.40048282,127.2,127.08,9.40048282]
[1744583821353,2.0998,127.18,127.1,9.40048282]
[1744583821857,0.05663381,127.15,127.13,0.05301615]
[1744583822453,6.35033381,127.15,127.13,0.05301615]
[1744583823257,40.61033381,127.15,127.13,0.05301615]
[1744583824049,34.31663381,127.15,127.13,0.05301615]
[1744583824553,0.05663381,127.15,127.13,0.05301615]
[1744583824753,0.05663381,127.15,127.14,9.40048282]
[1744583824952,0.05663381,127.15,127.14,15.69448282]
[1744583825354,0.05663381,127.15,127.13,0.05301615]
[1744583826554,6.35023381,127.15,127.13,0.05301615]
[1744583827257,6.294,127.14,127.13,0.05301615]
[1744583827960,6.2952,127.12,127.08,9.40048282]
[1744583828158,6.2952,127.12,127.07,9.40048282]
[1744583828357,34.26,127.14,127.07,9.40048282]
[1744583829063,2.0589,127.13,127.07,9.40048282]
[1744583829264,6.34838993,127.12,127.07,15.69778282]
[1744583829764,0.05308993,127.12,127.08,6.2969]
[1744583830266,0.05308993,127.12,127.07,9.40048282]
[1744583830465,0.05308993,127.12,127.06,34.26]
[1744583830965,6.2959,127.11,127.06,40.5576]
[1744583831760,0.05308993,127.12,127.06,34.26]
[1744583831966,0.05308993,127.12,127.07,9.40048282]
[1744583833572,6.34818993,127.12,127.08,6.2967]
[1744583833772,0.05308993,127.12,127.07,9.40048282]
[1744583833973,0.05308993,127.12,127.06,34.26]
[1744583834968,0.05308993,127.12,127.07,6.2972]
[1744583835169,0.05308993,127.12,127.07,9.40048282]
[1744583835567,0.05308993,127.12,127.08,6.2967]
[1744583836073,0.05308993,127.12,127.07,9.40048282]
[1744583836669,0.05308993,127.12,127.09,6.2962]
[1744583836869,0.05308993,127.12,127.07,9.40048282]
[1744583838268,0.05308993,127.12,127.09,6.2962]
[1744583838469,0.05308993,127.12,127.06,34.26]
[1744583838769,4.35988993,127.12,127.06,34.26]
[1744583838968,6.2956,127.11,127.07,6.2971]
[1744583839168,4.35988993,127.12,127.07,6.2971]
[1744583839468,6.2955,127.11,127.07,6.2971]
[1744583839663,6.2955,127.11,127.05,9.40048282]
[1744583839664,4.35988993,127.12,127.05,9.40048282]
[1744583839866,4.3068,127.12,127.05,9.40048282]
[1744583840067,0.06055626,127.1,127.08,6.2965]
[1744583840266,0.06055626,127.1,127.05,9.40048282]
[1744583840569,0.06055626,127.1,127.07,6.2972]
[1744583841767,0.06055626,127.1,127.05,9.40048282]
[1744583842177,0.06055626,127.1,127.07,6.297]
[1744583842573,0.06055626,127.1,127.05,9.40048282]
[1744583843473,0.06055626,127.1,127.07,6.2972]
[1744583843971,0.06055626,127.1,127.05,9.40048282]
[1744583844677,0.06055626,127.1,127.06,6.2975]
[1744583844874,6.2967,127.09,127.03,43.60048282]
[1744583845073,34.2,127.1,127.03,43.60048282]
[1744583845273,0.05095462,127.07,127.03,43.60048282]
[1744583847277,0.05095462,127.07,127.05,9.40048282]
[1744583847990,0.05095462,127.07,127.06,6.298]
[1744583851181,0.05095462,127.07,127.06,12.30987265]
[1744583851374,0.05095462,127.07,127.06,6.01187265]
[1744583851977,0.05095462,127.07,127.06,12.30987265]
[1744583852579,34.2,127.1,127.07,6.297]
[1744583852781,34.2,127.1,127.08,6.01187265]
[1744583853881,34.26039943,127.1,127.08,6.06282727]
[1744583855181,0.06039943,127.1,127.08,6.06282727]
[1744583856478,0.06039943,127.1,127.09,6.2965]
[1744583858482,40.5846,127.16,127.08,6.06282727]
[1744583858682,40.5846,127.16,127.12,6.01187265]
[1744583858882,46.8781,127.16,127.12,6.01187265]
[1744583859480,6.2937,127.15,127.12,6.01187265]
[1744583859680,6.34979124,127.15,127.13,0.05443682]
[1744583859980,6.294,127.14,127.13,0.05443682]
[1744583860181,6.01187265,127.14,127.06,6.01187265]
[1744583860484,6.01187265,127.12,127.06,6.01187265]
[1744583860685,6.2963,127.1,127.06,6.2977]
[1744583860892,6.01187265,127.08,127.02,6.01187265]
[1744583861083,6.2985,127.05,127.01,6.3002]
[1744583861284,6.2985,127.05,127.04,0.05178545]
[1744583861585,10.4812,127.05,127.01,6.3002]
[1744583861987,10.4812,127.05,127.01,12.31207265]
[1744583862284,6.299,127.04,127.01,12.31207265]
[1744583862486,4.1827,127.05,126.99,15.23834479]
[1744583862685,6.01187265,127.04,126.99,15.23834479]
[1744583862993,0.05978582,127.03,126.99,21.53934479]
[1744583863188,0.05978582,127.03,126.99,9.22647214]
[1744583863487,0.05978582,127.03,127.0,6.3006]
[1744583864594,0.05978582,127.03,127.01,6.3003]
[1744583864893,0.05978582,127.03,126.96,43.54576696]
[1744583865194,0.05978582,127.03,127.01,6.3001]
[1744583866092,6.35948582,127.03,126.96,43.54576696]
[1744583866593,6.35948582,127.03,127.0,6.3008]
[1744583867489,6.35948582,127.03,126.96,43.54576696]
[1744583867695,40.4602,127.02,126.98,6.3017]
[1744583868192,0.05819166,127.01,126.94,10.77622338]
[1744583868383,0.05819166,127.01,126.96,9.40576696]
[1744583868585,0.05819166,127.01,126.94,9.40576696]
[1744583868787,0.05819166,127.01,126.96,6.3029]
[1744583869996,0.05819166,127.01,126.97,6.3023]
[1744583870293,0.05819166,127.01,126.94,9.40576696]
[1744583870588,6.3012,127.0,126.94,9.40576696]
[1744583870793,34.16,127.02,126.94,9.40576696]
[1744583870995,0.05428667,126.98,126.94,9.40576696]
[1744583871393,0.05428667,126.98,126.95,6.3031]
[1744583872297,34.21428667,126.98,126.95,6.3031]
[1744583874299,34.21428667,126.98,126.92,9.40576696]
[1744583875099,34.21428667,126.98,126.94,9.40576696]
[1744583875301,34.16,126.98,126.95,6.3029]
[1744583875602,0.05677094,126.97,126.95,6.3029]
[1744583876898,0.05677094,126.97,126.94,6.3038]
[1744583877201,0.05677094,126.97,126.92,9.40576696]
[1744583877398,0.05677094,126.97,126.94,6.3037]
[1744583878102,0.05677094,126.97,126.95,6.3033]
[1744583878502,0.05677094,126.97,126.92,9.40576696]
[1744583878703,0.05677094,126.97,126.94,6.3036]
[1744583879003,0.05677094,126.97,126.92,9.40576696]
[1744583879204,0.05677094,126.97,126.95,6.303]
[1744583880903,0.05677094,126.97,126.92,9.40576696]
[1744583881402,0.05677094,126.97,126.93,6.3042]
[1744583881703,0.05677094,126.97,126.9,43.56576696]
[1744583881903,0.05677094,126.97,126.93,6.304]
[1744583882203,0.05677094,126.97,126.9,43.56576696]
[1744583882503,6.35967094,126.97,126.92,6.3046]
[1744583882703,6.35967094,126.97,126.9,43.56576696]
[1744583883005,6.35967094,126.97,126.92,6.3046]
[1744583883505,6.35967094,126.97,126.93,6.3044]
[1744583884004,0.05677094,126.97,126.9,43.56576696]
[1744583884204,0.05677094,126.97,126.92,9.40576696]
[1744583885298,0.05677094,126.97,126.95,6.3034]
[1744583885704,0.05677094,126.97,126.92,9.40576696]
[1744583885903,0.05677094,126.97,126.94,6.3036]
[1744583886309,0.05677094,126.97,126.95,6.3034]
[1744583886703,0.05677094,126.97,126.92,9.40576696]
[1744583886904,0.05677094,126.97,126.94,6.3037]
[1744583887104,6.35937094,126.97,126.9,34.16]
[1744583887303,6.35937094,126.97,126.9,43.56576696]
[1744583887507,6.35937094,126.97,126.93,6.3041]
[1744583888210,0.05677094,126.97,126.9,43.56576696]
[1744583888398,0.05677094,126.97,126.92,9.40576696]
[1744583888799,0.05677094,126.97,126.96,6.3029]
[1744583889103,34.18,127.01,126.96,9.40576696]
[1744583889304,2.0937,127.03,126.98,9.40576696]
[1744583889504,34.18,127.05,127.0,9.40576696]
[1744583890408,0.05381889,127.04,127.01,0.0504132]
[1744583891209,0.05381889,127.04,127.01,6.3506132]
[1744583891410,0.05381889,127.04,127.01,0.0504132]
[1744583893114,0.05381889,127.04,127.01,6.3506132]
[1744583893303,0.05381889,127.04,127.01,0.0504132]
[1744583893710,0.05381889,127.04,127.03,6.2994]
[1744583894415,0.05381889,127.04,127.02,6.2998]
[1744583894611,0.05381889,127.04,127.01,0.0504132]
[1744583896211,0.05381889,127.04,127.01,6.3506132]
[1744583896515,0.05381889,127.04,127.01,0.0504132]
[1744583898218,0.05381889,127.04,127.02,6.2996]
[1744583898419,0.05381889,127.04,127.01,0.0504132]
[1744583898909,0.05381889,127.04,127.02,6.2999]
[1744583899318,0.05381889,127.04,127.01,0.0504132]
[1744583899619,6.35321889,127.04,127.01,0.0504132]
[1744583899918,2.09701889,127.04,127.01,0.0504132]
[1744583900319,8.39621889,127.04,127.01,0.0504132]
[1744583900721,2.09701889,127.04,126.94,43.52576696]
[1744583900918,6.3007,127.01,126.94,43.52576696]
[1744583901119,40.4207,127.01,126.94,43.52576696]
[1744583901320,34.12,127.01,126.96,6.3029]
[1744583901519,8.4375,127.0,126.92,9.40576696]
[1744583901720,10.4516,127.0,126.92,9.40576696]
[1744583901921,0.05642689,126.97,126.92,9.40576696]
[1744583902419,0.05642689,126.97,126.96,6.3029]
[1744583902822,36.1341,127.03,126.96,9.40576696]
[1744583903625,36.1341,127.03,126.99,6.3011]
[1744583903825,34.12,127.03,126.96,9.40576696]
[1744583904026,0.04980805,127.02,127.0,0.05325735]
[1744583904226,0.04980805,127.02,127.0,6.35395735]
[1744583904421,0.04980805,127.02,127.0,0.05325735]
[1744583906120,0.04980805,127.02,127.01,6.3004]
[1744583907023,0.04980805,127.02,127.0,0.05325735]
[1744583907727,0.04980805,127.02,127.0,6.35415735]
[1744583909031,0.04980805,127.02,127.01,6.3004]
[1744583916832,4.0914,127.09,127.0,9.45902431]
[1744583917033,34.1,127.11,127.04,9.40576696]
[1744583917228,34.1,127.11,127.06,9.40576696]
[1744583917432,34.1,127.11,127.08,6.2966]
[1744583918031,34.15240485,127.11,127.08,6.34955985]
[1744583918433,34.15240485,127.11,127.09,6.2962]
[1744583919133,0.05240485,127.11,127.1,6.296]
[1744583919639,34.1,127.16,127.13,6.2942]
[1744583920835,34.15301689,127.16,127.13,6.35419784]
[1744583921337,34.15301689,127.16,127.14,6.294]
[1744583921533,34.15301689,127.16,127.13,0.05999784]
[1744583921733,34.15301689,127.16,127.08,43.50576696]
[1744583921933,34.1,127.16,127.08,43.50576696]
[1744583922634,40.3932,127.16,127.08,43.50576696]
[1744583923032,0.0529742,127.13,127.11,0.05744198]
[1744583923537,0.0529742,127.13,127.05,657.68]
[1744583923934,43.50576696,127.16,127.06,9.40576696]
[1744583924737,0.05681849,127.12,127.1,0.05027808]
[1744583925540,0.05681849,127.12,127.11,6.2955]
[1744583926038,0.05681849,127.12,127.1,0.05027808]
[1744583927335,0.05681849,127.12,127.11,6.2955]
[1744583932040,0.05681849,127.12,127.1,0.05027808]
[1744583932646,0.05681849,127.12,127.11,6.2955]
[1744583938245,34.07681849,127.12,127.04,9.40576696]
[1744583938442,2.173,127.11,127.04,9.40576696]
[1744583938644,2.173,127.11,127.09,6.2961]
[1744583939448,2.23021666,127.11,127.09,6.2961]
[1744583940544,0.05721666,127.11,127.1,6.296]
[1744583941354,0.05721666,127.11,127.09,6.2962]
[1744583942051,0.05721666,127.11,127.04,44.79501014]
[1744583942555,0.05721666,127.11,127.06,9.40576696]
[1744583944155,0.05721666,127.11,127.1,6.296]
[1744583946550,34.02,127.15,127.14,6.294]
[1744583946750,38.0892,127.18,127.1,9.40576696]
[1744583946952,4.0692,127.18,127.12,9.40576696]
[1744583947157,34.02,127.21,127.16,9.40576696]
[1744583947565,34.02,127.21,127.14,9.40576696]
[1744583947751,0.05318224,127.2,127.17,6.34436169]
[1744583948057,0.05318224,127.2,127.17,0.05236169]
[1744583948565,11.5919492,127.2,127.1,43.42576696]
[1744583948751,6.2923,127.18,127.14,6.294]
[1744583949655,0.05468342,127.17,127.15,6.2935]
[1744583950455,0.05468342,127.17,127.16,6.293]
[1744583952057,0.05468342,127.17,127.15,6.2933]
[1744583952262,11.53876696,127.2,127.15,6.2933]
[1744583952454,0.05259642,127.17,127.11,33.96]
[1744583952855,0.05259642,127.17,127.16,6.293]
[1744583960965,0.05259642,127.17,127.12,9.40576696]
[1744583962663,0.05259642,127.17,127.14,6.2939]
[1744583963567,43.34576696,127.16,127.03,9.40576696]
[1744583963758,9.40576696,127.09,127.02,36.90588857]
[1744583963955,9.40576696,127.07,127.01,9.22647214]
[1744583964158,9.40576696,127.05,127.01,9.22647214]
[1744583964459,33.94,127.04,127.01,2.67847214]
[1744583965562,40.2393,127.04,127.01,2.67847214]
[1744583965764,33.94,127.04,127.01,2.67847214]
[1744583966370,33.94,127.04,127.0,6.3006]
[1744583966564,40.2393,127.04,127.0,6.3006]
[1744583967066,40.2393,127.04,127.01,6.3004]
[1744583967265,33.94,127.04,127.01,6.3004]
[1744583967468,33.99129115,127.04,127.01,6.3004]
[1744583967967,40.29029115,127.04,127.01,6.3004]
[1744583969069,33.99129115,127.04,127.01,6.3004]
[1744583969270,33.99129115,127.04,127.0,6.3008]
[1744583969468,33.94,127.04,127.0,6.3008]
[1744583969771,0.05604086,127.03,127.0,6.3008]
[1744583971271,0.05604086,127.03,126.99,6.3013]
[1744583971463,40.239,127.04,126.99,6.3013]
[1744583971671,0.05013445,127.02,126.99,6.3013]
[1744583973573,0.05013445,127.02,127.0,6.3007]
[1744583973774,0.05013445,127.02,126.98,33.98]
[1744583974372,0.05013445,127.02,127.0,6.3005]
[1744583975572,0.05013445,127.02,126.99,6.3012]
[1744583975773,0.05013445,127.02,126.98,33.98]
[1744583976373,0.05013445,127.02,127.0,6.3006]
[1744583976669,0.05013445,127.02,126.98,33.98]
[1744583976870,2.0318,127.08,127.01,15.04790065]
[1744583977077,2.0318,127.08,127.04,6.2987]
[1744583977576,657.5,127.1,127.04,6.2987]
[1744583977779,6.297,127.08,127.04,6.2987]
[1744583978077,0.05230116,127.07,127.05,0.05469514]
[1744583978277,6.35010116,127.07,127.05,0.05469514]
[1744583978476,0.05230116,127.07,127.05,0.05469514]
[1744583981380,6.298,127.06,127.05,0.05469514]
[1744583981581,33.92,127.06,126.99,33.98]
[1744583981883,1.9946,127.05,126.99,33.98]
[1744583982584,1.9946,127.05,127.02,6.2996]
[1744583982885,0.05048756,127.03,127.02,6.2996]
[1744583983771,35.9146,127.09,127.05,6.2983]
[1744583984384,42.2112,127.09,127.05,6.2983]
[1744583984583,35.9146,127.09,127.04,6.2988]
[1744583985081,0.05649792,127.08,127.05,0.05319325]
[1744583985282,0.05649792,127.08,127.05,6.35159325]
[1744583985777,0.05649792,127.08,127.05,0.05319325]
[1744583986382,6.35349792,127.08,127.05,0.05319325]
[1744583987687,0.05649792,127.08,127.05,6.35149325]
[1744583988178,0.05649792,127.08,127.05,0.05319325]
[1744583988985,6.35369792,127.08,127.05,0.05319325]
[1744583990686,0.05649792,127.08,127.05,6.35159325]
[1744583991688,0.05649792,127.08,127.06,6.2978]
[1744583991980,0.05649792,127.08,127.07,6.2975]
[1744583997592,0.05649792,127.08,127.06,6.2977]
[1744583998983,0.05649792,127.08,127.05,6.35159325]
[1744583999189,0.05649792,127.08,127.05,0.05319325]
[1744583999391,2.06949792,127.08,127.05,0.05319325]
[1744583999591,2.0747,127.07,127.05,0.05319325]
[1744584000191,2.0747,127.07,127.05,6.35139325]
[1744584000793,2.0747,127.07,127.06,6.298]
[1744584001090,0.05649792,127.08,127.06,6.298]
[1744584001887,0.05649792,127.08,127.07,6.2975]
[1744584002091,2.0747,127.14,127.07,9.39789876]
[1744584002288,2.0747,127.14,127.1,9.39789876]
[1744584002488,2.0747,127.14,127.12,6.2946]
[1744584002688,2.0747,127.14,127.08,43.31789876]
[1744584002889,2.0747,127.14,127.08,33.92]
[1744584003190,6.2945,127.13,127.09,6.2961]
[1744584003495,0.05209114,127.12,127.1,0.05320322]
[1744584006203,0.05209114,127.12,127.1,6.34910322]
[1744584009804,0.05209114,127.12,127.11,6.2955]
[1744584010399,0.05209114,127.12,127.1,6.34890322]
[1744584010901,0.05209114,127.12,127.11,6.2955]
[1744584013304,38.0139,127.19,127.1,9.45110198]
[1744584013500,40.0087,127.19,127.12,9.39789876]
[1744584014107,40.0087,127.19,127.1,9.39789876]
[1744584014406,0.05542135,127.15,127.13,0.05064881]
[1744584014608,0.05542135,127.15,127.14,6.294]
[1744584015802,0.05542135,127.15,127.14,15.69189876]
[1744584016010,35.8348,127.19,127.14,9.39789876]
[1744584016307,1.9948,127.19,127.14,9.39789876]
[1744584017109,0.05332629,127.18,127.17,6.2924]
[1744584022109,35.9716,127.22,127.2,6.2909]
[1744584023300,36.02927411,127.22,127.2,6.34139149]
[1744584023607,33.89767411,127.22,127.21,6.2905]
[1744584023810,0.05767411,127.22,127.21,6.2905]
[1744584029914,0.05767411,127.22,127.2,6.34139149]
[1744584030114,0.05767411,127.22,127.2,0.05049149]
[1744584031215,0.05767411,127.22,127.21,6.2905]
[1744584035712,0.05767411,127.22,127.2,6.34139149]
[1744584035918,0.05767411,127.22,127.11,9.39789876]
[1744584035919,33.82,127.21,127.11,9.39789876]
[1744584036110,13.48079876,127.2,127.09,9.39789876]
[1744584036313,6.2929,127.17,127.13,6.2945]
[1744584036513,40.1129,127.17,127.13,6.2945]
[1744584037013,40.1129,127.17,127.14,0.0578274]
[1744584037217,0.05329818,127.16,127.14,0.0578274]
[1744584037418,6.34639818,127.16,127.14,0.0578274]
[1744584038122,0.05329818,127.16,127.14,0.0578274]
[1744584038620,6.2935,127.15,127.14,0.0578274]
[1744584038823,9.45119694,127.16,127.08,33.82]
[1744584039121,9.39789876,127.16,127.1,6.2957]
[1744584039318,6.2945,127.13,127.1,6.2957]
[1744584039917,6.2945,127.13,127.1,6.35490993]
[1744584040125,6.35118286,127.13,127.1,6.35490993]
[1744584040625,33.87668286,127.13,127.05,43.21789876]
[1744584040920,33.82,127.13,127.05,43.21789876]
[1744584041228,33.82,127.13,127.07,9.39789876]
[1744584041427,33.82,127.16,127.07,9.39789876]
[1744584041619,6.2936,127.15,127.11,6.2952]
[1744584041819,0.05398587,127.13,127.11,6.2952]
[1744584042125,0.05398587,127.13,127.12,0.05247297]
[1744584045831,0.05398587,127.13,127.12,6.34747297]
[1744584046331,33.76,127.19,127.16,6.2927]
[1744584046835,33.76,127.19,127.13,9.39789876]
[1744584047132,33.76,127.19,127.11,9.39789876]
[1744584047331,1.9694,127.18,127.11,9.39789876]
[1744584047522,0.0578048,127.16,127.14,0.0546933]
[1744584048131,0.0578048,127.16,127.15,6.2935]
[1744584048534,0.0578048,127.16,127.14,0.0546933]
[1744584048934,0.0578048,127.16,127.14,6.3483933]
[1744584052534,0.0578048,127.16,127.14,0.0546933]
[1744584053736,0.0578048,127.16,127.09,43.15789876]
[1744584053936,33.76,127.15,127.09,43.15789876]
[1744584054236,627.0229,127.2,127.11,9.39789876]
[1744584054437,4.0829,127.2,127.13,9.39789876]
[1744584054734,10.3742,127.2,127.15,6.2931]
[1744584054937,0.05011599,127.18,127.15,0.06005424]
[1744584055637,0.05011599,127.18,127.16,6.293]
[1744584056338,0.05011599,127.18,127.17,6.2925]
[1744584059944,33.76,127.24,127.21,6.2903]
[1744584060142,33.76,127.24,127.17,9.39789876]
[1744584060943,35.8204,127.27,127.24,6.289]
[1744584061139,35.8204,127.27,127.21,9.39789876]
[1744584061339,35.87878049,127.27,127.21,9.39789876]
[1744584061545,35.87878049,127.27,127.24,6.2888]
[1744584062044,35.87878049,127.27,127.23,0.06013389]
[1744584062245,33.81838049,127.27,127.23,0.06013389]
[1744584062844,33.81838049,127.27,127.24,6.2888]
[1744584064245,40.10598049,127.27,127.23,6.34953389]
[1744584064541,33.81838049,127.27,127.23,0.06013389]
[1744584064745,35.7684,127.26,127.19,9.39789876]
[1744584064947,45.16629876,127.26,127.2,6.2908]
[1744584065143,33.76,127.25,127.2,6.2908]
[1744584065342,33.76,127.24,127.2,6.2908]
[1744584065543,33.76,127.24,127.19,6.2913]
[1744584065945,0.05915621,127.23,127.2,0.0586986]
[1744584066246,0.05915621,127.23,127.2,6.3495986]
[1744584067149,6.34885621,127.23,127.2,6.3495986]
[1744584067348,6.34885621,127.23,127.2,0.0586986]
[1744584068444,6.2902,127.22,127.2,0.0586986]
[1744584068847,0.05915621,127.23,127.2,0.0586986]
[1744584069449,6.34885621,127.23,127.2,0.0586986]
[1744584070046,8.33665621,127.23,127.2,0.0586986]
[1744584071753,2.04695621,127.23,127.2,0.0586986]
[1744584071954,2.0673,127.28,127.21,9.39789876]
[1744584072157,2.0673,127.28,127.23,9.39789876]
[1744584072447,2.0673,127.28,127.26,6.2878]
[1744584073050,2.1232,127.29,127.26,6.2878]
[1744584073251,0.05241652,127.28,127.26,0.05478153]
[1744584073646,142.19232184,127.35,127.27,15.68549876]
[1744584073851,2.1232,127.34,127.27,9.39789876]
[1744584074457,33.7,127.33,127.25,43.09789876]
[1744584074946,0.05516691,127.3,127.28,0.05881226]
[1744584076958,6.34126691,127.3,127.28,0.05881226]
[1744584077753,0.05516691,127.3,127.28,0.05881226]
[1744584080160,6.34156691,127.3,127.28,0.05881226]
[1744584080661,0.05516691,127.3,127.28,0.05881226]
[1744584081358,0.05516691,127.3,127.28,6.34571226]
[1744584081556,0.05516691,127.3,127.28,0.05881226]
[1744584082463,0.05516691,127.3,127.28,6.34551226]
[1744584082763,0.05516691,127.3,127.28,0.05881226]
[1744584083464,0.05516691,127.3,127.28,6.34571226]
[1744584084265,0.05516691,127.3,127.28,0.05881226]
[1744584084862,0.05516691,127.3,127.28,6.34581226]
[1744584085966,0.05516691,127.3,127.28,0.05881226]
[1744584086568,0.05516691,127.3,127.28,6.34571226]
[1744584087669,0.05516691,127.3,127.28,0.05881226]
[1744584087869,0.05516691,127.3,127.23,9.39789876]
[1744584088070,6.2869,127.29,127.23,9.39789876]
[1744584088267,6.2869,127.29,127.26,6.2877]
[1744584088473,33.7,127.33,127.26,6.2877]
[1744584088663,6.2863,127.3,127.26,6.2877]
[1744584089063,0.05534715,127.29,127.27,0.05131035]
[1744584089268,33.73534715,127.29,127.22,33.68]
[1744584089464,38.02864715,127.29,127.23,9.39789876]
[1744584089870,33.73534715,127.29,127.23,9.39789876]
[1744584090372,0.05534715,127.29,127.25,9.39789876]
[1744584090571,0.05534715,127.29,127.25,9.45132946]
[1744584090866,0.05534715,127.29,127.27,6.2874]
[1744584092177,0.05534715,127.29,127.28,6.2871]
[1744584098078,35.8028,127.35,127.27,9.39789876]
[1744584098378,33.68,127.38,127.3,9.39789876]
[1744584098579,33.68,127.38,127.31,6.2854]
[1744584098779,33.68,127.38,127.3,43.07789876]
[1744584098970,6.2844,127.34,127.3,33.68]
[1744584099172,6.2844,127.34,127.33,0.05744627]
[1744584099371,43.07789876,127.38,127.32,6.2847]
[1744584099681,43.07789876,127.38,127.32,6.33796777]
[1744584099974,0.05175255,127.36,127.32,0.05326777]
[1744584100174,6.2843,127.34,127.32,0.05326777]
[1744584100377,33.68,127.34,127.27,43.07789876]
[1744584100577,4.1977,127.33,127.27,43.07789876]
[1744584100881,10.4827,127.33,127.27,43.07789876]
[1744584101483,0.05477339,127.31,127.29,0.05483558]
[1744584102180,0.05477339,127.31,127.3,6.286]
[1744584107788,0.05477339,127.31,127.3,15.68389876]
[1744584108588,4.1556,127.39,127.3,17.25789876]